bitfinex/quotes_BTCUSD_20220109
["timestamp","ask_amount","ask_price","bid_price","bid_amount"]
[1641733575823,0.40729306,41755.0,41752.0,0.059876]
[1641733576226,0.40729306,41757.0,41752.0,0.059876]
[1641733576624,0.40750039,41757.0,41752.0,0.059876]
[1641733577023,0.00020733,41757.0,41752.0,0.46770134]
[1641733577226,0.00020733,41757.0,41753.0,0.60482856]
[1641733577425,0.00020733,41757.0,41754.0,0.109871]
[1641733577726,0.29041994,41758.0,41754.0,0.109871]
[1641733577924,0.00020733,41757.0,41754.0,0.109871]
[1641733578469,0.00020733,41757.0,41754.0,0.169743]
[1641733578666,0.00020733,41757.0,41754.0,0.22961529]
[1641733578866,0.29062727,41758.0,41754.0,0.22961529]
[1641733579065,0.00020733,41758.0,41754.0,0.27961529]
[1641733579265,0.00020733,41758.0,41754.0,0.29161529]
[1641733579667,0.00020733,41758.0,41756.0,0.30700541]
[1641733579869,0.40729306,41764.0,41757.0,0.709866]
[1641733580068,0.00020733,41758.0,41757.0,0.859866]
[1641733580269,0.00020733,41758.0,41757.0,1.40971416]
[1641733580469,0.40812224,41764.0,41758.0,2.318]
[1641733580668,0.40812224,41764.0,41759.0,0.179578]
[1641733580869,0.00082918,41764.0,41761.0,0.23635162]
[1641733581069,0.40729306,41766.0,41763.0,0.25121143]
[1641733581271,0.40729306,41766.0,41764.0,0.67938025]
[1641733581470,0.12853813,41769.0,41766.0,1.468]
[1641733581668,0.40329071,41775.0,41768.0,0.179548]
[1641733581867,0.40329071,41775.0,41769.0,0.24263823]
[1641733582068,0.40329071,41775.0,41773.0,0.059849]
[1641733582328,0.000215,41774.0,41773.0,0.11969863]
[1641733582727,0.000215,41774.0,41773.0,0.35537332]
[1641733582931,0.000215,41774.0,41773.0,0.85537332]
[1641733583226,0.0006367,41778.0,41773.0,0.72869863]
[1641733583428,0.00021109,41776.0,41775.0,1.109839]
[1641733583728,0.0006367,41778.0,41777.0,1.05]
[1641733583928,0.0006367,41778.0,41777.0,1.33169589]
[1641733584129,0.0046367,41779.0,41778.0,1.05]
[1641733584327,0.0106367,41782.0,41779.0,1.61197428]
[1641733584527,0.0006367,41785.0,41782.0,2.518]
[1641733584729,0.0046367,41789.0,41783.0,1.25]
[1641733584930,0.0046367,41789.0,41785.0,0.89987622]
[1641733585129,0.0046367,41789.0,41785.0,1.56787622]
[1641733585329,0.0046367,41789.0,41785.0,1.71787622]
[1641733586183,0.0046367,41789.0,41785.0,0.44987622]
[1641733586584,0.0046367,41789.0,41786.0,0.05]
[1641733586784,0.00050075,41787.0,41786.0,0.05]
[1641733586988,0.00050075,41787.0,41786.0,0.609826]
[1641733587184,0.00050075,41787.0,41786.0,1.209826]
[1641733587387,0.00050075,41787.0,41786.0,1.242826]
[1641733588387,0.00050075,41787.0,41786.0,0.092826]
[1641733588586,0.00050075,41787.0,41783.0,0.119637]
[1641733589084,0.00050075,41787.0,41785.0,0.059835]
[1641733589285,0.00950075,41787.0,41785.0,0.059835]
[1641733590325,0.00950075,41787.0,41783.0,0.1542737]
[1641733590524,0.00050075,41787.0,41783.0,0.1202737]
[1641733590926,0.25668978,41786.0,41783.0,0.1202737]
[1641733591325,0.25668978,41786.0,41783.0,0.1492737]
[1641733592727,0.39792038,41785.0,41783.0,0.1202737]
[1641733593126,0.91264243,41784.0,41783.0,0.0006367]
[1641733593330,1.29788043,41784.0,41783.0,0.0006367]
[1641733593775,1.39916154,41784.0,41783.0,0.0006367]
[1641733593978,1.23651911,41784.0,41783.0,0.0006367]
[1641733595479,0.49851911,41784.0,41783.0,0.0006367]
[1641733595683,0.01328111,41784.0,41783.0,0.0006367]
[1641733596278,0.012,41784.0,41783.0,0.0006367]
[1641733596478,0.00050075,41787.0,41783.0,0.0006367]
[1641733596678,0.00020722,41786.0,41783.0,0.0006367]
[1641733597322,0.02720722,41786.0,41783.0,0.0006367]
[1641733597624,0.28087682,41786.0,41783.0,0.0006367]
[1641733598022,0.28087682,41786.0,41783.0,0.0604767]
[1641733598624,0.25387682,41786.0,41783.0,0.0604767]
[1641733599424,0.27587682,41786.0,41783.0,0.0604767]
[1641733599626,0.022,41786.0,41783.0,0.0604767]
[1641733600627,0.27142442,41786.0,41783.0,0.0604767]
[1641733601279,0.29442442,41786.0,41783.0,0.0604767]
[1641733602074,0.29442442,41786.0,41783.0,0.0006367]
[1641733602673,0.385238,41785.0,41783.0,0.0006367]
[1641733602873,0.27142442,41786.0,41783.0,0.0006367]
[1641733603078,1.01735306,41784.0,41783.0,0.0006367]
[1641733603275,1.40259106,41784.0,41783.0,0.00021265]
[1641733603778,1.45259106,41784.0,41783.0,0.00021265]
[1641733603976,1.60259106,41784.0,41783.0,0.00021265]
[1641733604575,1.60259106,41784.0,41782.0,0.0006367]
[1641733604576,1.435238,41782.0,41779.0,0.0006367]
[1641733604825,0.00120088,41780.0,41779.0,0.0006367]
[1641733605023,1.47261917,41780.0,41779.0,0.0006367]
[1641733605424,1.48361917,41780.0,41779.0,0.0006367]
[1641733606025,1.29743888,41780.0,41779.0,0.0006367]
[1641733606227,0.39743888,41780.0,41779.0,0.0006367]
[1641733606625,1.02197056,41780.0,41779.0,0.0006367]
[1641733607027,0.57133296,41780.0,41779.0,0.0006367]
[1641733607425,0.40080128,41780.0,41779.0,0.0006367]
[1641733607926,0.50080128,41780.0,41779.0,0.0006367]
[1641733608126,0.40080128,41780.0,41779.0,0.0006367]
[1641733608575,0.38580128,41780.0,41779.0,0.0006367]
[1641733609374,0.40080128,41780.0,41779.0,0.0006367]
[1641733609779,1.05,41779.0,41769.0,0.119711]
[1641733609978,1.05,41779.0,41768.0,0.00019466]
[1641733609979,1.53653277,41776.0,41768.0,0.00019466]
[1641733610176,1.59708277,41776.0,41768.0,0.00019466]
[1641733610777,1.8803476,41776.0,41762.0,0.059878]
[1641733610981,1.9803476,41776.0,41768.0,0.00019467]
[1641733611177,2.0803476,41776.0,41768.0,0.00019467]
[1641733611376,2.0903476,41776.0,41768.0,0.00019467]
[1641733611580,2.5088186,41776.0,41768.0,0.00019467]
[1641733611978,2.62856921,41776.0,41768.0,0.00019467]
[1641733612624,2.61856921,41776.0,41768.0,0.00019467]
[1641733613029,2.61856921,41776.0,41763.0,0.059875]
[1641733613226,2.61856921,41776.0,41768.0,0.00019467]
[1641733613427,2.63056921,41776.0,41768.0,0.00019467]
[1641733614129,2.63056921,41776.0,41763.0,0.059875]
[1641733614325,2.63056921,41776.0,41768.0,0.00019467]
[1641733614728,2.56856921,41776.0,41768.0,0.00019467]
[1641733614926,2.39881861,41776.0,41768.0,0.00019467]
[1641733615131,1.14881861,41776.0,41768.0,0.00019467]
[1641733615329,1.10026861,41776.0,41768.0,0.00019467]
[1641733616079,1.10026861,41776.0,41769.0,0.31918591]
[1641733616279,0.39853278,41776.0,41774.0,0.11971955]
[1641733616481,0.012,41776.0,41774.0,0.11971955]
[1641733616780,0.012,41776.0,41772.0,0.119714]
[1641733616781,0.00020722,41778.0,41775.0,0.3506367]
[1641733616976,0.00020722,41778.0,41775.0,0.0006367]
[1641733617378,0.01720722,41778.0,41776.0,0.31626477]
[1641733617577,0.01720722,41778.0,41776.0,0.37611077]
[1641733617578,0.017,41778.0,41776.0,0.37611077]
[1641733618178,0.01446824,41778.0,41776.0,0.37611077]
[1641733618776,0.0006367,41779.0,41776.0,0.49580477]
[1641733618777,0.00084392,41779.0,41776.0,0.49580477]
[1641733618976,0.00084392,41779.0,41777.0,0.11969332]
[1641733619380,0.02084392,41779.0,41777.0,0.11969332]
[1641733619827,0.0206367,41779.0,41777.0,0.11969332]
[1641733620629,0.0006367,41779.0,41777.0,0.11969332]
[1641733621032,0.0006367,41779.0,41777.0,0.059847]
[1641733621230,0.29923479,41778.0,41775.0,0.12035107]
[1641733622031,0.05484392,41779.0,41775.0,0.06049307]
[1641733622931,0.05484392,41779.0,41776.0,0.059856]
[1641733623332,0.03284392,41779.0,41776.0,0.059856]
[1641733623772,0.03284392,41779.0,41775.0,0.0036367]
[1641733624774,0.00084392,41779.0,41775.0,0.0006367]
[1641733625170,0.0006367,41779.0,41775.0,0.0006367]
[1641733625370,0.02284392,41779.0,41775.0,0.0026367]
[1641733625770,0.02284392,41779.0,41775.0,0.0624957]
[1641733626473,0.35883908,41777.0,41775.0,0.0026367]
[1641733626672,0.35883908,41777.0,41775.0,0.0006367]
[1641733627327,0.38483908,41777.0,41775.0,0.0026367]
[1641733627924,0.38483908,41777.0,41775.0,0.00237304]
[1641733628726,0.00020722,41778.0,41775.0,0.00037304]
[1641733629326,0.02720722,41778.0,41775.0,0.00037304]
[1641733629728,0.027,41778.0,41775.0,0.00037304]
[1641733629924,0.027,41778.0,41775.0,0.06022704]
[1641733630973,0.027,41778.0,41776.0,0.05985]
[1641733631373,0.041,41778.0,41776.0,0.119699]
[1641733632574,0.00084392,41779.0,41776.0,0.119699]
[1641733632773,0.00084392,41779.0,41777.0,0.05985407]
[1641733632974,0.0006367,41779.0,41778.0,0.059853]
[1641733633475,0.30605044,41782.0,41778.0,0.059853]
[1641733634275,0.30605044,41782.0,41780.0,0.059849]
[1641733635431,0.32505044,41782.0,41780.0,0.059849]
[1641733635829,0.32505044,41782.0,41776.0,0.0604887]
[1641733636029,0.32505044,41782.0,41778.0,0.059854]
[1641733636429,0.32505044,41782.0,41776.0,0.0604887]
[1641733636430,0.32516124,41782.0,41776.0,0.0006367]
[1641733636629,0.30616124,41782.0,41776.0,0.0006367]
[1641733636834,0.3123888,41781.0,41776.0,0.0006367]
[1641733637030,0.3123888,41781.0,41776.0,0.0604937]
[1641733637229,0.3123888,41781.0,41776.0,0.0006367]
[1641733637230,0.385238,41780.0,41776.0,0.0006367]
[1641733637434,0.385238,41780.0,41777.0,0.0006367]
[1641733637930,0.385238,41780.0,41778.0,0.0006367]
[1641733638578,0.92079119,41779.0,41778.0,0.0006367]
[1641733638777,1.40602919,41779.0,41778.0,0.0006367]
[1641733638982,1.40726248,41779.0,41778.0,0.0006367]
[1641733639177,1.50726248,41779.0,41778.0,0.0006367]
[1641733639377,1.51826248,41779.0,41778.0,0.0006367]
[1641733639579,1.05,41778.0,41777.0,7.34e-05]
[1641733639777,0.059878,41772.0,41761.0,0.52610983]
[1641733639982,0.059878,41770.0,41761.0,0.52610983]
[1641733640177,0.059878,41770.0,41761.0,0.40636445]
[1641733640378,0.07115492,41773.0,41763.0,0.059877]
[1641733640579,0.09804349,41774.0,41763.0,0.059877]
[1641733640778,0.26353228,41771.0,41763.0,0.38415725]
[1641733641377,0.26353228,41771.0,41763.0,0.41815725]
[1641733641378,0.27253228,41771.0,41763.0,0.41815725]
[1641733641778,0.27230134,41771.0,41764.0,0.059871]
[1641733641980,0.27230134,41771.0,41766.0,0.05987046]
[1641733642230,0.27230134,41771.0,41766.0,0.11974246]
[1641733642632,0.26330134,41771.0,41766.0,0.11974246]
[1641733643230,0.26330134,41771.0,41766.0,0.059971]
[1641733643431,0.27230134,41771.0,41766.0,0.084971]
[1641733644029,0.27230134,41771.0,41767.0,0.059871]
[1641733644431,0.27230134,41771.0,41766.0,0.08506142]
[1641733645433,0.27230134,41771.0,41766.0,0.0840617]
[1641733646076,0.27230134,41771.0,41766.0,0.02419124]
[1641733646675,0.26330134,41771.0,41766.0,0.00019124]
[1641733647475,1.27130134,41771.0,41766.0,0.013]
[1641733647675,1.33117534,41771.0,41766.0,0.01319124]
[1641733648575,1.33117534,41771.0,41766.0,0.072872]
[1641733648773,0.50713467,41771.0,41766.0,0.06006699]
[1641733649374,0.51613467,41771.0,41766.0,0.08506699]
[1641733649823,0.57600867,41771.0,41766.0,0.08506676]
[1641733650622,0.56700867,41771.0,41766.0,0.00019476]
[1641733650824,0.56700867,41771.0,41765.0,0.05987186]
[1641733651121,0.56700867,41771.0,41766.0,0.00019476]
[1641733651522,0.57500867,41771.0,41766.0,0.00019476]
[1641733651924,0.57500867,41771.0,41765.0,0.08587186]
[1641733652122,0.57500867,41771.0,41766.0,0.00019476]
[1641733652723,0.2936985,41768.0,41766.0,0.00019476]
[1641733653123,0.2936985,41768.0,41765.0,0.0001947]
[1641733653473,0.3026985,41768.0,41766.0,0.026]
[1641733654275,0.3625765,41768.0,41766.0,0.026]
[1641733654676,0.3535765,41768.0,41765.0,0.00019471]
[1641733654875,0.28055617,41766.0,41765.0,0.00019471]
[1641733655376,0.34043717,41766.0,41763.0,0.00019472]
[1641733655579,0.35543717,41766.0,41763.0,0.00019472]
[1641733655879,0.36143453,41769.0,41763.0,0.00019472]
[1641733656279,0.30155453,41769.0,41763.0,0.059877]
[1641733656579,0.06112617,41770.0,41764.0,0.00019472]
[1641733656978,0.30100853,41769.0,41764.0,0.00019472]
[1641733657233,0.00125017,41770.0,41765.0,0.05987244]
[1641733657433,0.009,41769.0,41759.0,0.48302186]
[1641733657634,0.009,41769.0,41764.0,0.00019472]
[1641733658238,0.32216219,41769.0,41764.0,0.00019472]
[1641733658635,0.32216219,41769.0,41766.0,0.059873]
[1641733658838,0.00125017,41770.0,41766.0,0.059873]
[1641733659437,0.01025017,41770.0,41766.0,0.081873]
[1641733659837,0.01025017,41770.0,41766.0,0.08206771]
[1641733660840,0.00125017,41770.0,41766.0,0.06006771]
[1641733661477,0.01125017,41770.0,41766.0,0.08106771]
[1641733662780,0.00125017,41770.0,41766.0,0.11993571]
[1641733662980,0.00125017,41770.0,41768.0,0.059869]
[1641733663580,0.01225017,41770.0,41768.0,0.059869]
[1641733663981,0.21136911,41770.0,41768.0,0.059869]
[1641733664728,0.00124039,41773.0,41768.0,0.059869]
[1641733664928,0.385238,41772.0,41768.0,0.059869]
[1641733665129,0.67993326,41772.0,41768.0,0.059869]
[1641733665327,0.67993326,41772.0,41768.0,0.00019408]
[1641733665528,0.69093326,41772.0,41768.0,0.00019408]
[1641733666229,0.396238,41772.0,41767.0,0.1197429]
[1641733666430,0.011,41772.0,41768.0,0.06006471]
[1641733666631,0.011,41772.0,41768.0,0.1199336]
[1641733666830,0.06111139,41773.0,41768.0,0.1199336]
[1641733667232,0.385238,41772.0,41768.0,0.1199336]
[1641733667533,0.37826778,41773.0,41768.0,0.12293359]
[1641733667934,0.41540835,41773.0,41768.0,0.0031947]
[1641733668886,0.40540835,41773.0,41768.0,0.0001947]
[1641733669087,0.40540835,41773.0,41770.0,0.059867]
[1641733669589,0.41340835,41773.0,41770.0,0.059867]
[1641733670689,0.40540835,41773.0,41770.0,0.059867]
[1641733671389,0.40540835,41773.0,41770.0,0.11973223]
[1641733671591,0.41840835,41773.0,41770.0,0.11973223]
[1641733671790,0.41840835,41773.0,41771.0,0.059866]
[1641733671991,0.385238,41772.0,41771.0,0.059866]
[1641733673027,0.40540835,41773.0,41771.0,0.059866]
[1641733673528,0.41840835,41773.0,41771.0,0.059866]
[1641733674327,0.01424039,41773.0,41771.0,0.059866]
[1641733674726,0.00124039,41773.0,41771.0,0.059866]
[1641733675127,0.40416796,41774.0,41771.0,0.059866]
[1641733675328,0.40416796,41774.0,41772.0,0.05986181]
[1641733675528,0.40416796,41774.0,41773.0,0.059862]
[1641733675728,0.78940596,41774.0,41771.0,0.002]
[1641733675979,0.385238,41773.0,41771.0,0.002]
[1641733676779,0.385238,41773.0,41770.0,0.00019468]
[1641733676982,0.40416796,41774.0,41770.0,0.00019468]
[1641733677182,0.40416796,41773.0,41768.0,0.119726]
[1641733677381,0.40416796,41773.0,41769.0,0.00019468]
[1641733677582,0.40416796,41773.0,41770.0,0.006]
[1641733677780,0.47503696,41774.0,41770.0,0.006]
[1641733677983,0.41516796,41774.0,41770.0,0.006]
[1641733678481,0.41516796,41774.0,41770.0,0.00619468]
[1641733678681,0.385238,41773.0,41770.0,0.00619468]
[1641733678884,0.385238,41773.0,41770.0,0.00019468]
[1641733678885,0.78940596,41773.0,41770.0,0.00019468]
[1641733679481,0.79440596,41773.0,41770.0,0.021]
[1641733679726,0.005,41773.0,41770.0,0.021]
[1641733680428,0.385238,41772.0,41770.0,0.021]
[1641733680827,0.385238,41772.0,41769.0,0.00019468]
[1641733681029,0.7902329,41772.0,41769.0,0.00019468]
[1641733681430,0.385238,41772.0,41769.0,0.00019468]
[1641733681626,0.01,41772.0,41769.0,0.028]
[1641733682026,0.41493992,41772.0,41769.0,0.028]
[1641733682227,0.01,41772.0,41769.0,0.028]
[1641733682629,0.40498791,41771.0,41769.0,0.028]
[1641733682827,0.40498791,41771.0,41768.0,0.06006469]
[1641733683027,0.40498791,41771.0,41769.0,0.05986854]
[1641733683228,0.40498791,41771.0,41769.0,0.11973654]
[1641733683485,0.01,41771.0,41769.0,0.088868]
[1641733683989,0.01,41771.0,41769.0,0.3389153]
[1641733684188,0.01,41771.0,41769.0,0.33891175]
[1641733684386,0.01,41771.0,41770.0,0.469713]
[1641733684684,0.01,41771.0,41770.0,0.81339862]
[1641733684884,0.60488924,41776.0,41770.0,0.81339862]
[1641733685087,0.40483047,41772.0,41770.0,0.81339862]
[1641733685585,0.40483047,41772.0,41770.0,0.89625562]
[1641733685785,0.40469505,41774.0,41770.0,0.89625562]
[1641733685986,0.40469505,41774.0,41772.0,0.179567]
[1641733686789,0.47691374,41777.0,41772.0,0.179567]
[1641733686987,0.47691374,41777.0,41774.0,0.0598554]
[1641733687233,0.07221869,41777.0,41775.0,0.059856]
[1641733687631,0.08621869,41777.0,41775.0,0.059856]
[1641733688232,0.08621869,41777.0,41775.0,0.11971151]
[1641733688432,0.08621869,41777.0,41775.0,0.17956751]
[1641733688833,0.07221869,41777.0,41775.0,0.17956751]
[1641733689633,0.10221869,41777.0,41775.0,0.17956751]
[1641733690533,0.10221869,41777.0,41775.0,0.11971151]
[1641733690982,0.0006367,41779.0,41775.0,0.11971151]
[1641733691182,0.385238,41778.0,41775.0,0.12034821]
[1641733691582,0.43625744,41779.0,41775.0,0.12034821]
[1641733691784,0.385238,41778.0,41775.0,0.12034821]
[1641733691982,0.43625744,41779.0,41775.0,0.06049221]
[1641733692185,0.385238,41778.0,41775.0,0.06049221]
[1641733693186,0.79085874,41778.0,41775.0,0.06049221]
[1641733693583,0.81285874,41778.0,41775.0,0.06049221]
[1641733693785,0.407238,41778.0,41775.0,0.06049221]
[1641733695234,0.407238,41778.0,41775.0,0.0006367]
[1641733695533,0.429238,41778.0,41775.0,0.0006367]
[1641733695734,0.21766701,41777.0,41775.0,0.0006367]
[1641733695934,0.385238,41776.0,41775.0,0.0006367]
[1641733696534,0.60651705,41776.0,41775.0,0.0006367]
[1641733697238,1.01213779,41776.0,41775.0,0.0006367]
[1641733697635,1.03313779,41776.0,41775.0,0.0006367]
[1641733698876,0.62689979,41776.0,41775.0,0.0006367]
[1641733699779,0.64689979,41776.0,41775.0,0.0006367]
[1641733700878,0.62689979,41776.0,41775.0,0.0006367]
[1641733701680,0.64589979,41776.0,41775.0,0.0006367]
[1641733702529,0.24027905,41776.0,41775.0,0.0006367]
[1641733702926,0.22127905,41776.0,41775.0,0.0006367]
[1641733703525,0.60651705,41776.0,41775.0,0.0006367]
[1641733703726,0.62951705,41776.0,41775.0,0.0006367]
[1641733703927,1.03479428,41776.0,41775.0,0.0006367]
[1641733704225,2.03479428,41776.0,41775.0,0.0006367]
[1641733704925,2.33853131,41776.0,41775.0,0.0006367]
[1641733705325,1.93325408,41776.0,41775.0,0.0006367]
[1641733705726,1.95225408,41776.0,41775.0,0.0056367]
[1641733705986,2.00225408,41776.0,41775.0,0.0056367]
[1641733706184,2.15225408,41776.0,41775.0,0.0056367]
[1641733706385,1.95225408,41776.0,41775.0,0.0056367]
[1641733706581,2.00225408,41776.0,41775.0,0.0056367]
[1641733706782,1.98325408,41776.0,41775.0,0.0006367]
[1641733706984,0.00301259,41771.0,41766.0,0.059873]
[1641733707183,0.43766849,41769.0,41767.0,0.05987174]
[1641733707683,0.21099569,41768.0,41767.0,0.05987174]
[1641733708084,0.43766849,41769.0,41767.0,0.05987174]
[1641733708483,0.21108404,41768.0,41767.0,0.05987174]
[1641733708685,0.66905888,41768.0,41767.0,0.05987174]
[1641733708884,0.75582157,41768.0,41765.0,0.06006879]
[1641733709283,0.75582157,41768.0,41765.0,0.05987408]
[1641733709487,0.45797484,41768.0,41765.0,0.05987408]
[1641733709728,0.46497484,41768.0,41765.0,0.05987408]
[1641733710728,0.74856734,41768.0,41765.0,0.05987408]
[1641733710929,0.33277323,41767.0,41764.0,0.00019472]
[1641733711128,0.4050042,41767.0,41764.0,0.00019472]
[1641733711532,0.4050042,41767.0,41763.0,0.11994805]
[1641733711730,0.4100042,41767.0,41763.0,0.06007205]
[1641733711929,0.4100042,41767.0,41763.0,0.00019472]
[1641733712133,0.084502,41766.0,41763.0,0.00019472]
[1641733712533,0.084502,41766.0,41760.0,0.40636445]
[1641733712734,0.084502,41766.0,41762.0,0.00019473]
[1641733712735,0.00121403,41764.0,41762.0,0.00019473]
[1641733712933,0.0012668,41763.0,41762.0,0.00019473]
[1641733713134,1.2365048,41763.0,41762.0,0.00019473]
[1641733713582,1.95284554,41763.0,41762.0,0.00019473]
[1641733713781,1.95284554,41763.0,41760.0,0.00019475]
[1641733714082,1.555037,41761.0,41760.0,0.00019475]
[1641733714281,3.20518376,41761.0,41760.0,0.00019475]
[1641733714481,3.30518376,41761.0,41760.0,0.00019475]
[1641733714881,0.10990727,41760.0,41758.0,0.00019476]
[1641733715086,1.86464306,41759.0,41758.0,0.00019476]
[1641733715280,1.86586764,41759.0,41758.0,0.00019476]
[1641733715482,2.01586764,41759.0,41758.0,0.00019476]
[1641733715681,2.02686764,41759.0,41758.0,0.00019476]
[1641733715881,2.42062355,41759.0,41756.0,0.00019477]
[1641733716081,2.38563294,41757.0,41756.0,0.00019477]
[1641733716283,1.66291954,41757.0,41756.0,0.00019477]
[1641733716483,1.81291954,41757.0,41756.0,5.83e-05]
[1641733716882,1.81291954,41757.0,41742.0,0.43153512]
[1641733716883,1.68812562,41757.0,41747.0,0.28439459]
[1641733717083,0.24627162,41756.0,41747.0,0.28439459]
[1641733717337,0.24627162,41756.0,41742.0,0.53153512]
[1641733717338,0.385238,41755.0,41742.0,0.53153512]
[1641733717538,0.34627162,41756.0,41742.0,0.43153512]
[1641733717740,0.34627162,41756.0,41743.0,0.06011]
[1641733717741,0.35327162,41756.0,41743.0,0.06011]
[1641733717935,0.00128234,41751.0,41743.0,0.06011]
[1641733718135,0.00128234,41751.0,41746.0,0.11979021]
[1641733718336,0.00128234,41751.0,41748.0,0.0598981]
[1641733718535,0.23022205,41752.0,41748.0,0.0598981]
[1641733718736,0.26930014,41756.0,41745.0,0.41996051]
[1641733718936,0.26230014,41756.0,41745.0,0.41996051]
[1641733719136,0.26230014,41756.0,41749.0,0.059893]
[1641733719440,0.26230014,41756.0,41751.0,0.05989335]
[1641733719636,0.385238,41755.0,41751.0,0.05989335]
[1641733720437,0.385238,41755.0,41751.0,0.06009517]
[1641733721686,0.402238,41755.0,41751.0,0.06009517]
[1641733722089,0.402238,41755.0,41751.0,0.00020182]
[1641733722889,0.385238,41755.0,41751.0,0.00020182]
[1641733723688,0.395238,41755.0,41751.0,0.00020182]
[1641733723888,0.395238,41755.0,41745.0,0.30016951]
[1641733724090,0.01,41755.0,41745.0,0.30016951]
[1641733724591,0.01,41755.0,41747.0,0.119778]
[1641733724829,3.08885947,41756.0,41751.0,0.059892]
[1641733725028,0.385238,41755.0,41752.0,0.05989156]
[1641733725629,0.402238,41755.0,41752.0,0.05989156]
[1641733726033,0.402238,41755.0,41749.0,0.11998111]
[1641733726229,0.402238,41755.0,41749.0,0.06008611]
[1641733726431,0.402238,41755.0,41750.0,0.0598944]
[1641733726732,0.402238,41755.0,41749.0,0.00019411]
[1641733726930,0.385238,41755.0,41745.0,0.41996051]
[1641733727130,3.08885947,41756.0,41749.0,0.00019411]
[1641733727330,0.385238,41755.0,41749.0,0.00019411]
[1641733727530,0.535238,41755.0,41749.0,0.00019411]
[1641733727730,0.0722552,41754.0,41749.0,0.00019411]
[1641733727933,0.60903311,41753.0,41749.0,0.00019411]
[1641733728131,0.60903311,41753.0,41749.0,0.00019412]
[1641733729195,0.60903311,41753.0,41749.0,0.00019404]
[1641733729694,0.61803311,41753.0,41749.0,0.00019404]
[1641733730895,0.60903311,41753.0,41749.0,0.00019404]
[1641733731298,0.60903311,41753.0,41745.0,0.059901]
[1641733731495,0.60903311,41753.0,41749.0,0.00019404]
[1641733731694,0.38323611,41750.0,41749.0,0.00019404]
[1641733731895,0.62760781,41750.0,41749.0,0.00019404]
[1641733732096,0.38323611,41750.0,41749.0,0.00019404]
[1641733732531,0.38323611,41750.0,41747.0,0.00019405]
[1641733733331,0.38323611,41750.0,41748.0,0.059898]
[1641733733532,0.38323611,41750.0,41744.0,0.17969323]
[1641733733731,0.38323611,41750.0,41746.0,0.00019407]
[1641733733732,0.38823611,41750.0,41746.0,0.00019407]
[1641733733932,0.21982583,41749.0,41746.0,0.00019407]
[1641733734532,0.27973483,41749.0,41746.0,0.00019407]
[1641733734735,0.27973483,41749.0,41745.0,0.00019408]
[1641733735132,0.385238,41748.0,41745.0,0.00019408]
[1641733735332,0.21982583,41749.0,41745.0,0.00019408]
[1641733735835,0.007,41748.0,41745.0,0.00019408]
[1641733736891,0.00122367,41746.0,41744.0,0.00019408]
[1641733737088,1.23646728,41745.0,41744.0,0.00019408]
[1641733737488,0.38646728,41745.0,41744.0,0.00019408]
[1641733737687,0.70691443,41745.0,41744.0,0.00019408]
[1641733737888,0.70691443,41745.0,41743.0,0.00021]
[1641733738089,0.32515613,41744.0,41743.0,0.00021]
[1641733738393,0.385238,41744.0,41743.0,0.00021]
[1641733738990,0.6158758,41744.0,41743.0,0.00021]
[1641733739191,0.985238,41743.0,41735.0,0.00021]
[1641733739393,1.43967505,41743.0,41735.0,0.060124]
[1641733739731,0.84567505,41743.0,41735.0,0.060124]
[1641733739935,0.84567505,41743.0,41739.0,0.05991099]
[1641733740731,1.0657145,41743.0,41739.0,0.05991099]
[1641733740933,1.0597145,41743.0,41739.0,0.05991099]
[1641733741634,0.83967505,41743.0,41739.0,0.05991099]
[1641733741833,0.84567505,41743.0,41740.0,0.05990997]
[1641733742541,0.006,41743.0,41740.0,0.05990997]
[1641733742940,0.30381504,41749.0,41741.0,0.119813]
[1641733743136,0.30381504,41749.0,41741.0,0.059906]
[1641733743581,0.30381116,41749.0,41741.0,0.059906]
[1641733743778,0.31481116,41749.0,41741.0,0.059906]
[1641733743978,0.31481116,41749.0,41746.0,0.05990074]
[1641733744180,0.385238,41748.0,41746.0,0.05990074]
[1641733744579,0.385238,41748.0,41743.0,0.11979829]
[1641733744782,0.21740598,41747.0,41743.0,0.11979829]
[1641733744979,0.385238,41746.0,41740.0,0.209909]
[1641733745181,0.57448343,41749.0,41742.0,0.05990852]
[1641733745380,0.385238,41748.0,41742.0,0.05990852]
[1641733745680,0.385238,41748.0,41740.0,0.15]
[1641733745880,0.36762193,41749.0,41740.0,0.15]
[1641733746089,0.01221116,41749.0,41744.0,0.119803]
[1641733746282,0.23188651,41749.0,41744.0,0.0599]
[1641733746683,1.00127649,41750.0,41745.0,0.15]
[1641733746684,0.28435057,41750.0,41745.0,0.15]
[1641733746883,0.28435057,41750.0,41746.0,0.059899]
[1641733746884,0.0002071,41749.0,41746.0,0.059899]
[1641733747239,0.0002071,41749.0,41747.0,0.443732]
[1641733747437,0.0002071,41749.0,41748.0,0.8411842]
[1641733747738,0.0032071,41749.0,41748.0,1.13193849]
[1641733747938,0.003,41749.0,41748.0,1.55274688]
[1641733749040,0.28435057,41750.0,41748.0,1.55274688]
[1641733749239,0.28435057,41750.0,41749.0,1.41712998]
[1641733749840,0.28435057,41750.0,41749.0,1.49212998]
[1641733750240,0.28435057,41750.0,41749.0,0.44212998]
[1641733751083,0.28435057,41750.0,41749.0,0.66712998]
[1641733751287,0.28435057,41750.0,41749.0,0.81712998]
[1641733751485,0.28435057,41750.0,41749.0,0.86712998]
[1641733751886,0.28435057,41750.0,41749.0,0.89412998]
[1641733752983,0.28435057,41750.0,41749.0,0.86712998]
[1641733753789,0.28435057,41750.0,41749.0,0.91712998]
[1641733753983,0.28435057,41750.0,41749.0,1.66712998]
[1641733754586,0.28435057,41750.0,41749.0,2.17509647]
[1641733755035,0.28435057,41750.0,41749.0,2.12509647]
[1641733755234,0.28435057,41750.0,41749.0,1.61712998]
[1641733755935,0.28435057,41750.0,41749.0,1.67212998]
[1641733756136,0.28435057,41750.0,41749.0,2.28175587]
[1641733756937,0.28435057,41750.0,41749.0,2.22675587]
[1641733757137,0.00020722,41752.0,41749.0,2.32675587]
[1641733757338,0.00020722,41752.0,41751.0,1.33628362]
[1641733757538,0.00211843,41755.0,41752.0,1.05]
[1641733757738,0.00211843,41755.0,41754.0,1.33361342]
[1641733757939,0.00082869,41762.0,41758.0,0.29443309]
[1641733758138,0.00082869,41762.0,41758.0,0.179586]
[1641733758339,0.00082869,41762.0,41759.0,0.2384825]
[1641733758587,0.00082869,41762.0,41760.0,0.05986205]
[1641733758788,0.29477406,41770.0,41760.0,0.05986205]
[1641733758992,0.95912663,41771.0,41768.0,0.23891553]
[1641733759189,0.40322663,41771.0,41769.0,0.059863]
[1641733759591,0.40322663,41772.0,41769.0,0.059863]
[1641733760089,0.40322663,41772.0,41769.0,0.23945399]
[1641733760290,0.40322663,41772.0,41769.0,0.119727]